fUSD/lending_fUSD_20241107
["ID","MTS","AMOUNT","RATE_DAILY","PERIOD"]
[341601987,1731019850440,-56.345141,0.00027397,2]
[341601988,1731019850450,-389.35989957,0.00027397,2]
[341601989,1731019850461,-219.80010043,0.00027397,2]
[341601990,1731019850471,-900.0,0.00027397,2]
[341601991,1731019850480,-485.55170333,0.00027397,2]
[341601992,1731019850492,-83.87829667,0.00027397,2]
[341601993,1731019850502,-500.0,0.00027397,2]
[341601994,1731019850511,-157.68673058,0.00027397,2]
[341601995,1731019850524,-544.43326942,0.00027397,2]
[341601996,1731019850534,-500.0,0.00027397,2]
[341601997,1731019850544,-67.88832295,0.00027397,2]
[341601998,1731019850558,-143.07180193,0.00027397,2]
[341601999,1731019850567,-225.9766057,0.00027397,2]
[341602000,1731019850582,-831.9933943,0.00027397,2]
[341602001,1731019850593,-766.32089369,0.00027397,2]
[341602002,1731019850604,-735.896,0.00027397,2]
[341602003,1731019850615,-7483.98605945,0.00027397,2]
[341602004,1731019850654,-24.32111049,0.00027397,2]
[341602005,1731019850737,-6012.33593637,0.00027397,2]
[341602006,1731019850747,-500.0,0.00027397,2]
[341602007,1731019850756,-601.97,0.00027397,2]
[341602008,1731019850766,-1420.25,0.00027397,2]
[341602009,1731019850776,-500.0,0.00027397,2]
[341602010,1731019850785,-500.0,0.00027397,2]
[341602011,1731019850795,-359.102867,0.00027397,7]
[341602012,1731019850804,-500.0,0.00027397,2]
[341602013,1731019850814,-500.0,0.00027397,2]
[341602014,1731019850824,-565.87,0.00027397,2]
[341602015,1731019850834,-110.68748579,0.00027397,2]
[341602016,1731019850869,-2.43801148,0.00027397,2]
[341602017,1731019850881,-122.19121777,0.00027397,2]
[341602018,1731019850891,-500.0,0.00027397,2]
[341602019,1731019850901,-500.0,0.00027397,2]
[341602020,1731019850911,-359.102867,0.00027397,7]
[341602021,1731019850920,-518.49,0.00027397,2]
[341602022,1731019850930,-500.0,0.00027397,2]
[341602023,1731019850943,-500.0,0.00027397,2]
[341602024,1731019850952,-500.0,0.00027397,2]
[341602025,1731019850962,-500.0,0.00027397,2]
[341602026,1731019850971,-500.0,0.00027397,2]
[341602027,1731019850980,-533.43,0.00027397,2]
[341602028,1731019850989,-500.0,0.00027397,2]
[341602029,1731019850999,-500.0,0.00027397,2]
[341602030,1731019851008,-753.2,0.00027397,2]
[341602031,1731019851017,-500.0,0.00027397,2]
[341602032,1731019851026,-500.0,0.00027397,2]
[341602033,1731019851036,-500.0,0.00027397,2]
[341602034,1731019851045,-540.92990509,0.00027397,2]
[341602035,1731019851054,-500.0,0.00027397,2]
[341602036,1731019851064,-500.0,0.00027397,2]
[341602037,1731019851073,-500.0,0.00027397,2]
[341602038,1731019851083,-653.07,0.00027397,2]
[341602039,1731019851092,-621.35,0.00027397,2]
[341602040,1731019851101,-500.0,0.00027397,2]
[341602041,1731019851111,-500.0,0.00027397,2]
[341602042,1731019851121,-500.0,0.00027397,2]
[341602043,1731019851130,-500.0,0.00027397,2]
[341602044,1731019851139,-500.0,0.00027397,2]
[341602045,1731019851148,-500.0,0.00027397,2]
[341602046,1731019851158,-518.38402291,0.00027397,2]
[341602047,1731019851168,-151.0,0.00027397,7]
[341602048,1731019851180,-500.0,0.00027397,2]
[341602049,1731019851189,-500.0,0.00027397,2]
[341602050,1731019851198,-500.0,0.00027397,2]
[341602051,1731019851208,-500.0,0.00027397,2]
[341602052,1731019851217,-500.0,0.00027397,2]
[341602053,1731019851226,-537.95,0.00027397,2]
[341602054,1731019851235,-500.0,0.00027397,2]
[341602055,1731019851244,-500.0,0.00027397,2]
[341602056,1731019851254,-500.0,0.00027397,2]
[341602057,1731019851263,-200.0,0.00027397,2]
[341602058,1731019851272,-931.12,0.00027397,2]
[341602059,1731019851282,-519.99,0.00027397,2]
[341602060,1731019851291,-500.0,0.00027397,2]
[341602061,1731019851301,-500.0,0.00027397,2]
[341602062,1731019851310,-500.0,0.00027397,2]
[341602063,1731019851322,-151.0,0.00027397,7]
[341602064,1731019851332,-2506.47,0.00027397,2]
[341602065,1731019851350,-500.0,0.00027397,2]
[341602066,1731019851363,-2735.67,0.00027397,2]
[341602067,1731019851372,-500.0,0.00027397,2]
[341602068,1731019851382,-2168.49,0.00027397,2]
[341602069,1731019851392,-500.0,0.00027397,2]
[341602070,1731019851402,-1058.93,0.00027397,2]
[341602071,1731019851411,-500.0,0.00027397,2]
[341602072,1731019851421,-500.0,0.00027397,2]
[341602073,1731019851432,-538.97,0.00027397,2]
[341602074,1731019851441,-547.06,0.00027397,2]
[341602075,1731019851451,-500.0,0.00027397,2]
[341602076,1731019851460,-553.69,0.00027397,2]
[341602077,1731019851469,-328.92999669,0.00027397,2]
[341602078,1731019851478,-1525.888651,0.00027397,7]
[341602079,1731019851488,-500.0,0.00027397,2]
[341602080,1731019851498,-1335.4,0.00027397,2]
[341602081,1731019851507,-500.0,0.00027397,2]
[341602082,1731019851522,-579.11,0.00027397,2]
[341602083,1731019851531,-553.69,0.00027397,2]
[341602084,1731019851541,-1018.16,0.00027397,2]
[341602085,1731019851550,-500.0,0.00027397,2]
[341602086,1731019851561,-569.5,0.00027397,2]
[341602087,1731019851571,-1525.888651,0.00027397,7]
[341602088,1731019851580,-757.92,0.00027397,2]
[341602089,1731019851592,-500.0,0.00027397,2]
[341602090,1731019851601,-500.0,0.00027397,2]
[341602091,1731019851611,-2542.07,0.00027397,2]
[341602092,1731019851620,-500.0,0.00027397,2]
[341602093,1731019851630,-628.99,0.00027397,2]
[341602094,1731019851639,-829.19,0.00027397,2]
[341602095,1731019851648,-500.0,0.00027397,2]
[341602096,1731019851658,-500.0,0.00027397,2]
[341602097,1731019851667,-500.0,0.00027397,2]
[341602098,1731019851676,-500.0,0.00027397,2]
[341602099,1731019851687,-500.0,0.00027397,2]
[341602100,1731019851697,-500.0,0.00027397,2]
[341602101,1731019851706,-684.69,0.00027397,2]
[341602102,1731019851716,-500.0,0.00027397,2]
[341602103,1731019851725,-2380.73,0.00027397,2]
[341602104,1731019851734,-500.0,0.00027397,2]
[341602105,1731019851744,-500.0,0.00027397,2]
[341602106,1731019851753,-679.76,0.00027397,2]
[341602107,1731019851762,-500.0,0.00027397,2]
[341602108,1731019851771,-500.0,0.00027397,2]
[341602109,1731019851780,-623.54,0.00027397,2]
[341602110,1731019851790,-500.0,0.00027397,2]
[341602111,1731019851799,-500.0,0.00027397,2]
[341602112,1731019851809,-834.15,0.00027397,2]
[341602113,1731019851819,-500.0,0.00027397,2]
[341602114,1731019851828,-500.0,0.00027397,2]
[341602115,1731019851837,-500.0,0.00027397,2]
[341602116,1731019851847,-502.45,0.00027397,2]
[341602117,1731019851856,-500.0,0.00027397,2]
[341602118,1731019851865,-500.0,0.00027397,2]
[341602119,1731019851875,-1505.51,0.00027397,2]
[341602120,1731019851886,-500.0,0.00027397,2]
[341602121,1731019851895,-668.31,0.00027397,2]
[341602122,1731019851905,-1174.03,0.00027397,2]
[341602123,1731019851914,-662.62,0.00027397,2]
[341602124,1731019851923,-500.0,0.00027397,2]
[341602125,1731019851933,-882.16,0.00027397,2]
[341602126,1731019851942,-856.63,0.00027397,2]
[341602127,1731019851951,-500.0,0.00027397,2]
[341602128,1731019851960,-599.64,0.00027397,2]
[341602129,1731019851969,-568.55,0.00027397,2]
[341602130,1731019851979,-500.0,0.00027397,2]
[341602131,1731019851988,-1558.37,0.00027397,2]
[341602132,1731019851998,-500.0,0.00027397,2]
[341602133,1731019852007,-500.0,0.00027397,2]
[341602134,1731019852016,-1229.44,0.00027397,2]
[341602135,1731019852025,-500.0,0.00027397,2]
[341602136,1731019852034,-835.93,0.00027397,2]
[341602137,1731019852043,-500.0,0.00027397,2]
[341602138,1731019852052,-1245.32,0.00027397,2]
[341602139,1731019852060,-500.0,0.00027397,2]
[341602140,1731019852069,-1573.04,0.00027397,2]
[341602141,1731019852078,-500.0,0.00027397,2]
[341602142,1731019852087,-500.0,0.00027397,2]
[341602143,1731019852098,-500.0,0.00027397,2]
[341602144,1731019852107,-589.22,0.00027397,2]
[341602145,1731019852117,-500.0,0.00027397,2]
[341602146,1731019852127,-500.0,0.00027397,2]
[341602147,1731019852137,-1249.62,0.00027397,2]
[341602148,1731019852148,-500.0,0.00027397,2]
[341602149,1731019852159,-500.0,0.00027397,2]
[341602150,1731019852168,-587.17,0.00027397,2]
[341602151,1731019852177,-500.0,0.00027397,2]
[341602152,1731019852187,-2218.91,0.00027397,2]
[341602153,1731019852196,-500.0,0.00027397,2]
[341602154,1731019852205,-500.0,0.00027397,2]
[341602155,1731019852214,-500.0,0.00027397,2]
[341602156,1731019852224,-1450.33,0.00027397,2]
[341602157,1731019852233,-500.0,0.00027397,2]
[341602158,1731019852242,-500.0,0.00027397,2]
[341602159,1731019852251,-3401.56,0.00027397,2]
[341602160,1731019852260,-500.0,0.00027397,2]
[341602161,1731019852270,-500.0,0.00027397,2]
[341602162,1731019852280,-619.35,0.00027397,2]
[341602163,1731019852289,-500.0,0.00027397,2]
[341602164,1731019852298,-500.0,0.00027397,2]
[341602165,1731019852307,-500.0,0.00027397,2]
[341602166,1731019852317,-589.66,0.00027397,2]
[341602167,1731019852327,-1598.83,0.00027397,2]
[341602168,1731019852336,-500.0,0.00027397,2]
[341602169,1731019852345,-500.0,0.00027397,2]
[341602170,1731019852354,-151.0,0.00027397,7]
[341602171,1731019852363,-504.08,0.00027397,2]
[341602172,1731019852372,-500.0,0.00027397,2]
[341602173,1731019852382,-500.0,0.00027397,2]
[341602174,1731019852391,-690.79,0.00027397,2]
[341602175,1731019852400,-500.0,0.00027397,2]
[341602176,1731019852410,-500.0,0.00027397,2]
[341602177,1731019852419,-570.09,0.00027397,2]
[341602178,1731019852429,-4631.0,0.00027397,2]
[341602179,1731019852439,-500.0,0.00027397,2]
[341602180,1731019852448,-764.82,0.00027397,2]
[341602181,1731019852457,-500.0,0.00027397,2]
[341602182,1731019852466,-500.0,0.00027397,2]
[341602183,1731019852475,-500.0,0.00027397,2]
[341602184,1731019852484,-500.0,0.00027397,2]
[341602185,1731019852493,-500.0,0.00027397,2]
[341602186,1731019852502,-500.0,0.00027397,2]
[341602187,1731019852512,-646.78,0.00027397,2]
[341602188,1731019852524,-568.95,0.00027397,2]
[341602189,1731019852533,-151.0,0.00027397,7]
[341602190,1731019852544,-571.03582905,0.00027397,2]
[341602191,1731019852555,-500.0,0.00027397,2]
[341602192,1731019852564,-500.0,0.00027397,2]
[341602193,1731019852573,-500.0,0.00027397,2]
[341602194,1731019852582,-738.67,0.00027397,2]
[341602195,1731019852594,-1045.1,0.00027397,2]
[341602196,1731019852604,-756.01,0.00027397,2]
[341602197,1731019852613,-527.94624806,0.00027397,2]
[341602198,1731019852622,-586.37584174,0.00027397,2]
[341602199,1731019852631,-500.0,0.00027397,2]
[341602200,1731019852640,-1384.21,0.00027397,2]
[341602201,1731019852653,-500.0,0.00027397,2]
[341602202,1731019852666,-500.0,0.00027397,2]
[341602203,1731019852679,-500.0,0.00027397,2]
[341602204,1731019852692,-500.0,0.00027397,2]
[341602205,1731019852703,-151.0,0.00027397,7]
[341602206,1731019852714,-500.0,0.00027397,2]
[341602207,1731019852726,-500.0,0.00027397,2]
[341602208,1731019852738,-1875.41,0.00027397,2]
[341602209,1731019852749,-3163.85,0.00027397,2]
[341602210,1731019852761,-151.0,0.00027397,7]
[341602211,1731019852773,-500.0,0.00027397,2]
[341602212,1731019852785,-725.75,0.00027397,2]
[341602213,1731019852797,-500.0,0.00027397,2]
[341602214,1731019852809,-291.009994,0.00027397,7]
[341602215,1731019852821,-575.38,0.00027397,2]
[341602216,1731019852835,-999.86,0.00027397,2]
[341602217,1731019852847,-500.0,0.00027397,2]
[341602218,1731019852859,-524.98,0.00027397,2]
[341602219,1731019852872,-669.16,0.00027397,2]
[341602220,1731019852884,-500.0,0.00027397,2]
[341602221,1731019852896,-500.0,0.00027397,2]
[341602222,1731019852908,-583.95,0.00027397,2]
[341602223,1731019852920,-644.7,0.00027397,2]
[341602224,1731019852933,-546.61,0.00027397,2]
[341602225,1731019852944,-291.009994,0.00027397,7]
[341602226,1731019852958,-3986.45,0.00027397,2]
[341602227,1731019852968,-651.02,0.00027397,2]
[341602228,1731019852978,-791.93,0.00027397,2]
[341602229,1731019852990,-553.11,0.00027397,2]
[341602230,1731019853000,-538.568822,0.00027397,7]
[341602231,1731019853012,-500.0,0.00027397,2]
[341602232,1731019853023,-500.0,0.00027397,2]
[341602233,1731019853035,-500.0,0.00027397,2]
[341602234,1731019853047,-538.568822,0.00027397,7]
[341602235,1731019853058,-500.0,0.00027397,2]
[341602236,1731019853069,-500.0,0.00027397,2]
[341602237,1731019853082,-1339.11,0.00027397,2]
[341602238,1731019853094,-4011.45,0.00027397,2]
[341602239,1731019853106,-535.86,0.00027397,2]
[341602240,1731019853117,-500.0,0.00027397,2]
[341602241,1731019853127,-500.0,0.00027397,2]
[341602242,1731019853137,-500.0,0.00027397,2]
[341602243,1731019853147,-756.28,0.00027397,2]
[341602244,1731019853157,-538.93,0.00027397,2]
[341602245,1731019853169,-151.0,0.00027397,7]
[341602246,1731019853182,-500.0,0.00027397,2]
[341602247,1731019853195,-500.0,0.00027397,2]
[341602248,1731019853206,-1283.9,0.00027397,2]
[341602249,1731019853216,-500.0,0.00027397,2]
[341602250,1731019853229,-500.0,0.00027397,2]
[341602251,1731019853240,-819.55,0.00027397,2]
[341602252,1731019853251,-235.79745474,0.00027397,2]
[341602253,1731019853265,-7757.64,0.00027397,2]
[341602254,1731019853276,-500.0,0.00027397,2]
[341602255,1731019853287,-500.0,0.00027397,2]
[341602256,1731019853298,-1905.69,0.00027397,2]
[341602257,1731019853308,-797.48,0.00027397,2]
[341602258,1731019853319,-500.0,0.00027397,2]
[341602259,1731019853330,-500.0,0.00027397,2]
[341602260,1731019853341,-1456.44,0.00027397,2]
[341602261,1731019853352,-746.89,0.00027397,2]
[341602262,1731019853363,-180.19206,0.00027397,7]
[341602263,1731019853374,-500.0,0.00027397,2]
[341602264,1731019853384,-500.0,0.00027397,2]
[341602265,1731019853396,-1319.75,0.00027397,2]
[341602266,1731019853407,-500.0,0.00027397,2]
[341602267,1731019853418,-500.0,0.00027397,2]
[341602268,1731019853433,-500.0,0.00027397,2]
[341602269,1731019853444,-500.0,0.00027397,2]
[341602270,1731019853455,-1343.92,0.00027397,2]
[341602271,1731019853466,-500.0,0.00027397,2]
[341602272,1731019853477,-600.94,0.00027397,2]
[341602273,1731019853489,-589.84,0.00027397,2]
[341602274,1731019853501,-582.73,0.00027397,2]
[341602275,1731019853512,-151.0,0.00027397,7]
[341602276,1731019853526,-151.0,0.00027397,7]
[341602277,1731019853536,-151.0,0.00027397,7]
[341602278,1731019853548,-3345.73,0.00027397,15]
[341602279,1731019853559,-151.0,0.00027397,7]
[341602280,1731019853571,-200.0,0.00027397,7]
[341602281,1731019853581,-150.57,0.00027397,2]
[341602282,1731019853594,-150.110806,0.00027398,2]
[341602283,1731019853606,-150.0,0.00027401,2]
[341602284,1731019853617,-150.0,0.00027403,2]
[341602285,1731019853628,-150.0,0.00027407,2]
[341602286,1731019853638,-150.0,0.00027409,2]
[341602287,1731019853649,-150.0,0.00027415,2]
[341602288,1731019853660,-150.0,0.00027422,2]
[341602289,1731019853671,-150.0,0.00027425,2]
[341602290,1731019853683,-150.0,0.00027428,2]
[341602291,1731019853695,-150.0,0.00027437,2]
[341602292,1731019853706,-360.0,0.0002744,2]
[341602293,1731019853717,-150.0,0.00027448,2]
[341602294,1731019853727,-150.0,0.00027452,2]
[341602295,1731019853738,-150.0,0.00027454,2]
[341602296,1731019853750,-150.0,0.00027458,2]
[341602297,1731019853761,-1500.0,0.00027471,2]
[341602298,1731019853772,-150.0,0.00027476,2]
[341602299,1731019853783,-18953.71237306,0.00027482,2]
[341602300,1731019853795,-150.0,0.00027487,2]
[341602301,1731019853807,-150.0,0.0002749,2]
[341602302,1731019853818,-150.0,0.00027495,2]
[341602303,1731019853829,-150.0,0.00027497,2]
[341602304,1731019853839,-3681.97293022,0.00027497,2]
[341602305,1731019853850,-150.110807,0.00027498,2]
[341602306,1731019853861,-150.0,0.00027499,2]
[341602307,1731019853872,-878.645529,0.000275,2]
[341602308,1731019853883,-300.0,0.000275,10]
[341602309,1731019853894,-1000.0,0.000275,2]
[341602310,1731019853905,-1000.0,0.000275,2]
[341602311,1731019853915,-150.0,0.00027509,2]
[341602312,1731019853926,-150.0,0.0002751,2]
[341602313,1731019853937,-192.25262363,0.00027511,2]
[341602314,1731019853947,-150.0,0.00027518,2]
[341602315,1731019853958,-150.0,0.00027523,2]
[341602316,1731019853968,-150.0,0.00027528,2]
[341602317,1731019853979,-600.0,0.00027534,7]
[341602318,1731019853990,-600.0,0.00027534,7]
[341602319,1731019854001,-150.0,0.00027547,2]
[341602320,1731019854011,-150.0,0.00027554,2]
[341602321,1731019854022,-150.0,0.00027558,2]
[341602322,1731019854032,-150.0,0.00027562,2]
[341602323,1731019854043,-189867.3142135,0.0002757,4]
[341602324,1731019854062,-1905.5066556,0.0002757,4]
[341602325,1731019854074,-1447.26961358,0.0002757,4]
[341602326,1731019854087,-756.96,0.0002757,4]
[341602327,1731019879620,1492.83,0.00024677,2]
[341602328,1731019907812,161.426,0.0001791,2]
[341602329,1731019911496,161.492,0.00015,4]
[341602330,1731019912034,161.758,0.000156,7]
[341602331,1731019959487,150.0,0.00018123,2]
[341602333,1731019981260,150.0,0.00019725,2]
[341602334,1731019981282,150.0,0.00019725,2]
[341602336,1731020040388,746.16,0.00019,2]
[341602337,1731020081884,1430.0,0.00025,7]
[341602338,1731020084453,150.0,0.00015342,2]
[341602339,1731020084475,42.81,0.00015342,2]
[341602343,1731020221267,300.0,0.00019725,2]
[341602344,1731020521860,224.0,0.00019725,2]
[341602345,1731020573343,-192.13,0.00020113,2]
[341602347,1731020593660,154.97,0.00015342,2]
[341602349,1731020837145,-450.0,0.00021,2]
[341602350,1731020837175,-25.94284958,0.00021745,2]
[341602351,1731020852128,-166.86715042,0.00021745,2]
[341602352,1731020852149,-286.19846622,0.00022298,2]
[341602353,1731020852173,-500.0,0.00023,2]
[341602354,1731020852200,-1015.0,0.00023471,2]
[341602355,1731020852221,-208.0,0.0002361,2]
[341602356,1731020852242,-1497.83,0.00023645,2]
[341602357,1731020852263,-3428.81,0.00023645,2]
[341602358,1731020852282,-833.09,0.00023645,2]
[341602359,1731020852303,-468.03,0.00023645,2]
[341602360,1731020852323,-474.17,0.00023645,2]
[341602361,1731020852343,-208.0,0.0002417,2]
[341602362,1731020852362,-157.0,0.00024293,2]
[341602363,1731020852383,-298.84,0.00024654,2]
[341602364,1731020852403,-1015.0,0.00024707,2]
[341602365,1731020852423,-208.0,0.0002473,2]
[341602366,1731020852448,-550.0,0.00025,2]
[341602367,1731020852468,-450.90128836,0.00025,2]
[341602368,1731020902721,150.0,0.00025,10]
[341602369,1731020925165,150.0,0.00025,10]
[341602370,1731020964087,-455.58,0.00025071,2]
[341602371,1731020993122,1422.93,0.00023502,2]
[341602372,1731021005672,-157.03,0.00025413,30]
[341602373,1731021026328,-478.98,0.00025461,120]
[341602377,1731021032294,-200.0,0.00025194,2]
[341602378,1731021032304,-164.57,0.00025194,2]
[341602379,1731021032313,-208.0,0.0002529,2]
[341602380,1731021032324,-158.13,0.0002536,2]
[341602381,1731021032333,-443.18307995,0.00025413,2]
[341602382,1731021032479,-3052.67692005,0.00025413,2]
[341602383,1731021032488,-250.0,0.00025483,2]
[341602384,1731021032498,-164.3,0.00025484,2]
[341602385,1731021032507,-211.2,0.00025492,2]
[341602386,1731021032516,-150.99,0.00025492,2]
[341602387,1731021032525,-250.0,0.00025541,2]
[341602388,1731021032535,-1000.0,0.00025552,2]
[341602389,1731021032545,-287.63,0.00025655,120]
[341602390,1731021032555,-1422.93,0.00025766,2]
[341602391,1731021032565,-5622.94374365,0.00025792,2]
[341602392,1731021032577,-6500.0,0.00025792,2]
[341602395,1731021038280,-1437.1,0.00025792,2]
[341602396,1731021038293,-2469.86278306,0.00025792,2]
[341602397,1731021038337,-257.82237684,0.00025792,2]
[341602398,1731021038349,-742.11629914,0.00025792,2]
[341602399,1731021038362,-277.0527081,0.00025792,2]
[341602400,1731021038653,-6593.10208921,0.00025792,2]
[341602401,1731021038663,-1398.0,0.00025794,2]
[341602402,1731021038674,-208.0,0.0002585,2]
[341602403,1731021038685,-1015.0,0.00026007,2]
[341602404,1731021038696,-500.0,0.00026164,7]
[341602405,1731021038708,-500.0,0.00026164,7]
[341602406,1731021038719,-500.0,0.00026164,7]
[341602407,1731021038730,-677.83,0.00026301,2]
[341602408,1731021038740,-426.81,0.00026301,2]
[341602409,1731021038751,-167.76,0.00026308,2]
[341602410,1731021038762,-167.13,0.00026329,2]
[341602411,1731021038773,-208.0,0.0002641,2]
[341602412,1731021038783,-427.61,0.00026441,2]
[341602413,1731021038795,-566.18219767,0.00026724,2]
[341602414,1731021038805,-566.18219768,0.00026724,2]
[341602415,1731021038816,-208.0,0.0002696,2]
[341602416,1731021038827,-500.0,0.00026986,7]
[341602417,1731021038847,-500.0,0.00026986,7]
[341602418,1731021038857,-600.0,0.00027,2]
[341602419,1731021038868,-261.85117694,0.00027196,2]
[341602420,1731021038879,-834.228,0.00027197,2]
[341602421,1731021038889,-697.95,0.00027197,2]
[341602422,1731021038899,-33161.4263,0.00027197,2]
[341602425,1731021038911,-2500.0,0.00027197,2]
[341602427,1731021038922,-2309.07224191,0.00027197,2]
[341602429,1731021038933,-2309.07224191,0.00027247,2]
[341602431,1731021038944,-150.0,0.00027265,2]
[341602433,1731021038955,-860.357,0.00027279,16]
[341602435,1731021038966,-500.0,0.00027296,2]
[341602437,1731021038977,-500.0,0.00027296,2]
[341602439,1731021038987,-500.0,0.00027296,2]
[341602441,1731021038998,-500.0,0.00027296,2]
[341602443,1731021039009,-315.06239535,0.00027296,2]
[341602446,1731021039020,-1474.8861,0.00027297,2]
[341602447,1731021039031,-200.0,0.00027297,2]
[341602448,1731021039041,-2809.1521,0.00027297,2]
[341602449,1731021039052,-99381.84,0.00027297,2]
[341602450,1731021039063,-1000.0,0.00027297,2]
[341602451,1731021039074,-318.25841388,0.00027297,2]
[341602452,1731021039087,-2309.07224191,0.00027297,2]
[341602453,1731021039098,-1000.0,0.000273,2]
[341602454,1731021039110,-150.0,0.00027307,2]
[341602455,1731021039124,-1015.0,0.00027307,2]
[341602456,1731021039137,-150.0,0.00027326,2]
[341602457,1731021039150,-150.0,0.00027339,2]
[341602458,1731021039163,-150.0,0.00027341,2]
[341602459,1731021039176,-150.0,0.00027341,2]
[341602460,1731021039189,-150.0,0.00027345,2]
[341602461,1731021039200,-150.0,0.00027359,2]
[341602463,1731021039210,-500.0,0.00027373,2]
[341602465,1731021039221,-500.0,0.00027373,2]
[341602467,1731021039233,-217.05276592,0.00027387,2]
[341602469,1731021039245,-2000.0,0.00027396,5]
[341602471,1731021039256,-500.0,0.00027397,2]
[341602473,1731021039268,-500.0,0.00027397,2]
[341602476,1731021039279,-500.0,0.00027397,2]
[341602478,1731021039291,-817.82,0.00027397,2]
[341602480,1731021039302,-590.53,0.00027397,2]
[341602482,1731021039314,-150.53741,0.00027397,2]
[341602484,1731021039326,-500.0,0.00027397,2]
[341602487,1731021039341,-500.0,0.00027397,2]
[341602489,1731021039353,-500.0,0.00027397,2]
[341602491,1731021039364,-164.870969,0.00027397,2]
[341602493,1731021039375,-152.285421,0.00027397,2]
[341602496,1731021039387,-500.0,0.00027397,2]
[341602498,1731021039399,-500.0,0.00027397,2]
[341602500,1731021039409,-500.0,0.00027397,2]
[341602502,1731021039420,-500.0,0.00027397,2]
[341602504,1731021039432,-500.0,0.00027397,2]
[341602506,1731021039443,-500.0,0.00027397,2]
[341602508,1731021039455,-500.0,0.00027397,2]
[341602511,1731021039466,-500.0,0.00027397,2]
[341602513,1731021039477,-500.0,0.00027397,2]
[341602515,1731021039487,-500.0,0.00027397,2]
[341602517,1731021039496,-1000.0,0.00027397,10]
[341602519,1731021039507,-210.11042679,0.00027397,2]
[341602521,1731021039518,-500.0,0.00027397,2]
[341602523,1731021039528,-563.73642574,0.00027397,2]
[341602525,1731021039540,-500.0,0.00027397,2]
[341602527,1731021039551,-500.0,0.00027397,2]
[341602530,1731021039562,-500.0,0.00027397,2]
[341602532,1731021039574,-500.0,0.00027397,2]
[341602534,1731021039586,-500.0,0.00027397,2]
[341602536,1731021039597,-248.72648792,0.00027397,2]
[341602538,1731021039609,-500.0,0.00027397,2]
[341602540,1731021039621,-569.13,0.00027397,2]
[341602542,1731021039633,-529.25429483,0.00027397,2]
[341602545,1731021039644,-500.0,0.00027397,2]
[341602547,1731021039655,-500.0,0.00027397,2]
[341602549,1731021039664,-532.0163395,0.00027397,2]
[341602551,1731021039674,-500.0,0.00027397,2]
[341602553,1731021039683,-500.0,0.00027397,2]
[341602554,1731021039693,-500.0,0.00027397,2]
[341602556,1731021039704,-500.0,0.00027397,2]
[341602559,1731021039715,-507.5869211,0.00027397,2]
[341602561,1731021039727,-500.0,0.00027397,2]
[341602563,1731021039738,-541.57001604,0.00027397,2]
[341602565,1731021039750,-500.0,0.00027397,2]
[341602567,1731021039761,-500.0,0.00027397,2]